[Event "Prague Festival Open 2022"]
[Site "Prague"]
[Date "2022.06.16"]
[Round "8.1"]
[White "Motylev, Alexander"]
[Black "Sedlak, Nikola"]
[Result "1-0"]
[ECO "B12"]
[WhiteElo "2633"]
[BlackElo "2476"]
[Annotator "TA"]
[PlyCount "73"]
[EventDate "2022.06.10"]
[EventType "swiss"]
[EventCountry "CZE"]
[SourceTitle "playchess.com"]
[Source "ChessBase"]
[SourceQuality "1"]
[TimeControl "40/5400+30:1800+30"]

{[%evp 9,73,0,13,10,21,16,16,10,41,46,30,38,40,39,71,56,108,91,100,98,92,97,103,83,103,72,103,61,68,64,59,58,47,58,58,50,54,57,56,57,60,60,60,75,79,77,60,54,80,81,94,84,135,123,322,367,361,342,356,318,348,353,360,364,435,427]} 1. e4 {[%emt 0:00:03]} c6 {[%emt 0:01:16]} 2. d4 {[%emt 0:00:24]} d5 {[%emt 0:00:11]} 3. e5 {[%emt 0:00:06]} c5 {[%emt 0:00:14]} 4. dxc5 {[%emt 0:00:23]} e6 {[%emt 0:00:18]} 5. c3 {[%emt 0:00:11]} Nc6 {[%emt 0:07:27]} 6. Nf3 {[%emt 0:00:48] B12: Caro-Kann: Advance Variation.} Bxc5 {[%emt 0:00:46]} 7. b4 {[%emt 0:00:07]} Bb6 {[%emt 0:04:32]} 8. b5 {[%emt 0:00:51] The position is equal.} Nce7 {[%emt 0:01:32]} 9. Bd3 {[%emt 0:01:44] [#]} Ng6 $146 {[%emt 0:06:12]} ({Predecessor:} 9... Qc7 10. O-O Bd7 11. Re1 Nh6 12. h3 O-O 13. a4 f6 14. exf6 Rxf6 15. Bg5 Rf7 {0-1 (48) Stefansson,H (2532)-Hjartarson,J (2523) Kopavogur 2021}) 10. O-O {[%emt 0:01:28]} N8e7 {[%emt 0:05:15]} 11. a4 {[%emt 0:03:07]} Bc7 {[%emt 0:07:35]} 12. Re1 {[%emt 0:03:48]} f6 {[%emt 0:01:29]} (12... a6 $14) 13. exf6 $16 {[%emt 0:02:03] White is more active.} gxf6 {[%emt 0:00:10] [#]} 14. c4 $1 {[%emt 0:00:46]} dxc4 {[%emt 0:09:39]} 15. Bxc4 {[%emt 0:03:25] aiming for Qb3.} Qxd1 {[%emt 0:00:21]} 16. Rxd1 {[%emt 0:00:04]} Ne5 {[%emt 0:00:52]} 17. Be2 {[%emt 0:13:06]} Nd5 {[%emt 0:06:13][%cal Be7d5,Bd5f4,Bf4e2][%mdl 32]} 18. Bb2 {[%emt 0:12:14]} Nf4 $1 {[%emt 0:00:27]} 19. Nxe5 {[%emt 0:01:28][%cal Oe2f3,Bf3e5,Be5g4,Bg4f6,Bf6e4][%mdl 32] Threatens to win with Bf3!} Nxe2+ {[%emt 0:00:08]} 20. Kf1 {[%emt 0:00:05]} Nf4 {[%emt 0:11:13]} 21. Ng4 {[%emt 0:04:49]} e5 {[%emt 0:00:16]} 22. Nxf6+ {[%emt 0:00:43]} Kf7 {[%emt 0:00:05]} 23. Ne4 {[%emt 0:11:05]} Bf5 {[%emt 0:00:58]} 24. Nbc3 {[%emt 0:07:21] Pair of Knights!} Rhd8 {[%emt 0:02:40]} 25. f3 $36 {[%emt 0:10:39][%mdl 2048] White has the initiative.} Kg6 {[%emt 0:02:20]} 26. Ba3 {[%emt 0:04:14]} Ba5 {[%emt 0:04:18]} 27. Rxd8 {[%emt 0:12:21]} Rxd8 {[%emt 0:00:20]} 28. Rd1 $1 {[%emt 0:00:22]} Rxd1+ {[%emt 0:05:02]} 29. Nxd1 {[%emt 0:00:02]} Be6 {[%emt 0:00:48]} 30. Ne3 {[%emt 0:00:46] Prevents Bc4+.} b6 {[%emt 0:03:59] Inhibits Nc5.} (30... Ba2 $142) 31. g3 {[%emt 0:01:27]} Nh5 {[%emt 0:05:07] [#] Black cannot hold the game after this.} (31... Nd5 $16 {was necessary.} 32. Nc4 Bc3) 32. Ng4 $1 $18 {[%emt 0:00:34]} Bb3 {[%emt 0:02:14]} 33. Nxe5+ {[%emt 0:00:17]} Kg7 {[%emt 0:02:09]} 34. Nc6 {[%emt 0:01:03]} Bxa4 {[%emt 0:00:06]} 35. Nxa7 {[%emt 0:00:33]} Kg6 {[%emt 0:00:22]} 36. Bb2 {[%emt 0:02:24] Inhibits Nf6.} Ng7 {[%emt 0:00:09]} 37. Bc3 {[%emt 0:01:11] Against Bb4.  Weighted Error Value: White=0.02 (flawless) /Black=0.17 (very precise)} 1-0

[Event "Prague Festival Open 2022"]
[Site "Prague"]
[Date "2022.06.16"]
[Round "8.2"]
[White "Popovic, Dusan"]
[Black "Santiago, Yago De Moura"]
[Result "1/2-1/2"]
[ECO "A11"]
[WhiteElo "2480"]
[BlackElo "2498"]
[Annotator "TA"]
[PlyCount "48"]
[EventDate "2022.06.10"]
[EventType "swiss"]
[EventCountry "CZE"]
[SourceTitle "playchess.com"]
[Source "ChessBase"]
[SourceQuality "1"]
[TimeControl "40/5400+30:1800+30"]

{[%evp 14,48,25,30,27,22,7,32,28,-9,-13,-6,-14,-4,-17,-27,-17,-12,-13,-14,0,0,0,-11,-2,0,0,0,-12,-2,0,-6,0,0,0,6,9]} 1. Nf3 {[%emt 0:00:57]} Nf6 {[%emt 0:01:12]} 2. g3 {[%emt 0:00:09]} g6 {[%emt 0:04:19]} 3. b3 {[%emt 0:00:11]} Bg7 {[%emt 0:00:30]} 4. Bb2 {[%emt 0:00:05]} d5 {[%emt 0:00:25]} 5. c4 {[%emt 0:00:18]} c6 {[%emt 0:00:07]} 6. Bg2 {[%emt 0:00:19]} O-O {[%emt 0:04:32]} 7. O-O {[%emt 0:00:04]} a5 {[%emt 0:00:17]} 8. Nc3 {[%emt 0:02:15] now supersedes 8.d3.} Ne4 {[%emt 0:08:59] A11: English Opening: 1...c6.} 9. Na4 {[%emt 0:01:03]} Bxb2 {[%emt 0:05:56]} 10. Nxb2 {[%emt 0:00:57]} d4 {[%emt 0:01:33] [#] White is slightly better.} 11. e3 $146 {[%emt 0:08:16]} ({Predecessor:} 11. Nd3 Na6 12. a3 Nec5 13. Nxc5 Nxc5 14. b4 Na6 15. d3 Bg4 16. Qd2 Bxf3 17. Bxf3 {1-0 (51) Dizdarevic,E (2509)-Kuzmanovic,S (2146) Zenica 2016}) 11... Bg4 {[%emt 0:04:42]} 12. Qc2 {[%emt 0:17:44]} Bxf3 {[%emt 0:02:25]} 13. Bxf3 {[%emt 0:00:22]} Nc5 {[%emt 0:00:43]} 14. Nd3 {[%emt 0:17:20]} Nba6 {[%emt 0:02:03][%cal Bb8a6,Ba6c5,Bc5d7][%mdl 32] With the idea ...dxe3.} 15. Nxc5 {[%emt 0:01:01] The position is equal.} Nxc5 {[%emt 0:00:08]} 16. a3 {[%emt 0:00:04]} Qd6 {[%emt 0:07:09]} 17. Rab1 {[%emt 0:06:58]} Nd7 {[%emt 0:25:49]} 18. b4 {[%emt 0:02:11]} axb4 {[%emt 0:00:50]} 19. axb4 {[%emt 0:00:05]} Ra3 {[%emt 0:00:23]} 20. c5 {[%emt 0:06:46]} Qf6 {[%emt 0:01:23]} 21. Bg2 {[%emt 0:00:52]} Rfa8 {[%emt 0:01:01]} 22. Qe4 {[%emt 0:02:21]} Ra2 {[%emt 0:02:22]} 23. Qxd4 {[%emt 0:04:04]} Qxd4 {[%emt 0:00:32]} 24. exd4 {[%emt 0:00:05] aiming for d5.} Rxd2 {[%emt 0:01:08] An interesting draw.  Weighted Error Value: White=0.04 (flawless) /Black=0.02 (flawless)} 1/2-1/2

[Event "Prague Festival Open 2022"]
[Site "Prague"]
[Date "2022.06.16"]
[Round "8.3"]
[White "Garriga Cazorla, Pere"]
[Black "Petr, Martin"]
[Result "1/2-1/2"]
[ECO "B38"]
[WhiteElo "2495"]
[BlackElo "2488"]
[Annotator "TA"]
[PlyCount "113"]
[EventDate "2022.06.10"]
[EventType "swiss"]
[EventCountry "CZE"]
[SourceTitle "playchess.com"]
[Source "ChessBase"]
[SourceQuality "1"]
[TimeControl "40/5400+30:1800+30"]

{[%evp 21,113,31,35,34,59,55,45,25,48,44,55,62,58,59,63,52,102,71,69,68,54,65,63,38,72,72,122,39,34,43,40,11,12,16,18,16,16,15,60,62,65,66,88,41,53,6,67,27,58,32,136,125,113,122,125,45,45,45,45,45,45,52,52,53,53,52,68,45,60,60,60,60,70,38,135,181,244,36,117,8,244,208,302,0,0,0,0,0,0,0,0,0,0,0]} 1. Nf3 {[%emt 0:04:57]} Nf6 {[%emt 0:00:40]} 2. c4 {[%emt 0:00:05]} g6 {[%emt 0:01:01]} 3. Nc3 {[%emt 0:00:08]} Bg7 {[%emt 0:02:28]} 4. e4 {[%emt 0:03:08]} c5 {[%emt 0:00:11]} 5. d4 {[%emt 0:00:18]} cxd4 {[%emt 0:00:11]} 6. Nxd4 {[%emt 0:00:04]} d6 {[%emt 0:00:37]} 7. Be2 {[%emt 0:00:25]} Nc6 {[%emt 0:01:06]} 8. Be3 {[%emt 0:00:05]} O-O {[%emt 0:00:22]} 9. O-O {[%emt 0:00:07]} Nxd4 {[%emt 0:05:08]} 10. Bxd4 {[%emt 0:01:34]} Bd7 $1 {[%emt 0:00:02] 10...Bd7 scores better than 10...Be6.} 11. h3 {[%emt 0:02:18]} Bc6 {[%emt 0:00:25]} 12. Qc2 {[%emt 0:00:06] B38: Sicilian: Maroczy Bind with 5...Bg7 and 7...0-0.} Nd7 {[%emt 0:05:08]} 13. Bxg7 {[%emt 0:03:26]} Kxg7 {[%emt 0:00:05]} 14. Rad1 {[%emt 0:13:47] White is slightly better.} a6 {[%emt 0:00:55]} 15. b4 {[%emt 0:13:45] And now b5 would win.} b6 {[%emt 0:00:28] [#]} 16. Bg4 $146 {[%emt 0:00:06]} ({Predecessor:} 16. Rfe1 Rc8 17. Bf1 Bb7 18. Qb2 Kg8 19. Nd5 e6 20. Ne3 Qe7 21. Qd4 Rfd8 22. Qxd6 {½-½ (50) Pichot,A (2625)-Shyam,N (2442) Chess.com INT 2021}) 16... Nf6 {[%emt 0:17:01]} 17. e5 {[%emt 0:11:05]} Nxg4 {[%emt 0:00:55]} 18. hxg4 {[%emt 0:00:06]} Qc8 {[%emt 0:08:42]} (18... b5 $14) 19. Qe2 {[%emt 0:00:20]} dxe5 {[%emt 0:05:09]} 20. Qxe5+ {[%emt 0:01:48]} Kg8 {[%emt 0:00:12]} 21. Rd4 {[%emt 0:00:18]} Ra7 {[%emt 0:12:27]} 22. f3 {[%emt 0:08:26]} Qc7 {[%emt 0:04:46]} 23. Qe3 {[%emt 0:03:20] White is much more active. The black rooks are badly placed.} b5 {[%emt 0:02:29]} (23... Raa8 $142) 24. Rc1 {[%emt 0:07:11]} (24. Rfd1 $16) 24... e5 $14 {[%emt 0:02:16]} 25. Rd2 {[%emt 0:02:47]} bxc4 {[%emt 0:00:27]} 26. Nd5 {[%emt 0:01:19]} Bxd5 {[%emt 0:00:34]} 27. Rxd5 {[%emt 0:00:01]} Rb7 {[%emt 0:02:26]} 28. Rc5 {[%emt 0:00:46]} Qb8 {[%emt 0:06:22]} 29. a3 {[%emt 0:00:09]} Rb5 {[%emt 0:01:23]} 30. R1xc4 {[%emt 0:04:27]} Rd8 {[%emt 0:00:01]} 31. g5 {[%emt 0:00:58]} Rd1+ {[%emt 0:07:32]} 32. Kf2 {[%emt 0:00:25] [#] Black must now prevent Rc8+.} Qd6 $1 {[%emt 0:00:53]} 33. a4 {[%emt 0:10:24]} (33. Rc6 $14 {deserves consideration.} Qd2+ 34. Qxd2 Rxd2+ 35. Kg3) 33... Rd2+ {[%emt 0:03:13]} (33... Rxc5 $11 34. bxc5 Qd5) 34. Kg1 {[%emt 0:00:30]} Rd1+ {[%emt 0:03:34]} 35. Kh2 $1 {[%emt 0:01:35]} Rb8 {[%emt 0:04:44]} (35... Rxc5 $1 $14 36. Qxc5 Qxc5 37. bxc5 Rd7) 36. Qxe5 {[%emt 0:02:02]} Qxe5+ {[%emt 0:00:06]} 37. Rxe5 $16 {[%emt 0:00:06][%mdl 4096] Endgame KRR-KRR} Rb1 {[%emt 0:00:02]} 38. Ra5 {[%emt 0:02:05]} (38. Rc6 $16) 38... R1xb4 $14 {[%emt 0:00:38]} 39. Rxb4 {[%emt 0:00:12]} Rxb4 {[%emt 0:00:04]} 40. Rxa6 {[%emt 0:00:04] Hoping for a5. KR-KR} Kg7 {[%emt 0:01:44]} 41. Ra7 {[%emt 0:31:15]} h6 $1 {[%emt 0:31:51]} 42. gxh6+ {[%emt 0:03:00]} Kxh6 {[%emt 0:00:14]} 43. g3 {[%emt 0:00:04]} Kg7 {[%emt 0:00:00]} 44. f4 {[%emt 0:00:00]} Rb2+ {[%emt 0:00:00]} 45. Kh3 {[%emt 0:00:00]} Ra2 {[%emt 0:00:00]} 46. Kh4 {[%emt 0:00:00]} Ra3 {[%emt 0:00:00]} 47. g4 {[%emt 0:00:00]} Rf3 {[%emt 0:00:00]} ({Better is} 47... Kf6 $14) 48. Kg5 $16 {[%emt 0:00:00]} Ra3 {[%emt 0:00:00]} (48... Rc3 $142 49. a5 Rc1) 49. Ra6 $2 {[%emt 0:00:00]} (49. a5 $18) 49... Ra1 {[%emt 0:00:00] [#]} ({Black should try} 49... Rc3 $14) 50. a5 {[%emt 0:00:00]} (50. Kh4 $1 $16) 50... Ra2 $2 {[%emt 0:00:00]} (50... f6+ $1 $11 51. Kh4 Ra4) 51. f5 {[%emt 0:00:00]} gxf5 {[%emt 0:00:00]} (51... Rc2 $142 52. fxg6 Rc5+ 53. Kh4 f6) 52. gxf5 $2 {[%emt 0:00:00]} (52. Kxf5 $18 {Threatens to win with Ra8.} Rf2+ 53. Ke5) 52... f6+ $11 {[%emt 0:00:00] The position is equal.} 53. Kh5 {[%emt 0:00:00] White wants to mate with Ra7+.} Rh2+ $1 {[%emt 0:00:00]} 54. Kg4 {[%emt 0:00:00]} Ra2 {[%emt 0:00:00]} 55. Ra8 {[%emt 0:00:00]} Kh6 {[%emt 0:00:00]} 56. Rh8+ {[%emt 0:00:00]} Kg7 {[%emt 0:00:00]} 57. Ra8 {[%emt 0:09:58] Weighted Error Value: White=0.31/Black=0.32} 1/2-1/2

[Event "Prague Festival Open 2022"]
[Site "Prague"]
[Date "2022.06.16"]
[Round "8.4"]
[White "Wagner, Dennis"]
[Black "Kozak, Antoni"]
[Result "1/2-1/2"]
[ECO "E04"]
[WhiteElo "2586"]
[BlackElo "2459"]
[Annotator "TA"]
[PlyCount "139"]
[EventDate "2022.06.10"]
[EventType "swiss"]
[EventCountry "CZE"]
[SourceTitle "playchess.com"]
[Source "ChessBase"]
[SourceQuality "1"]
[TimeControl "40/5400+30:1800+30"]

{[%evp 11,138,14,22,13,9,10,13,8,1,-29,-28,-19,0,0,24,17,20,29,22,14,33,32,51,42,45,48,57,48,80,81,137,-18,-21,-24,-24,-24,-6,-24,0,-18,92,92,88,0,17,0,0,0,0,0,0,0,0,0,0,0,16,9,63,63,66,65,68,64,73,0,0,0,74,0,0,0,0,0,0,0,0,0,0,0,0,0,0,0,7,5,6,-16,12,0,20,8,8,8,43,44,178,12,12,3,12,12,98,98,98,98,98,77,84,91,91,0,0,0,0,0,0,0,0,0,0,0,0,0,0,0,0,0,0]} 1. d4 {[%emt 0:00:05]} d5 {[%emt 0:00:11]} 2. c4 {[%emt 0:00:05]} e6 {[%emt 0:00:03]} 3. Nf3 {[%emt 0:00:07]} Nf6 {[%emt 0:00:06]} 4. g3 {[%emt 0:00:05]} dxc4 {[%emt 0:00:05]} 5. Bg2 {[%emt 0:00:04]} Bb4+ {[%emt 0:00:05]} 6. Bd2 {[%emt 0:00:04]} a5 {[%emt 0:00:04]} 7. Qc2 {[%emt 0:00:05] E04: Open Catalan: 5 Nf3.} Bxd2+ {[%emt 0:00:05]} 8. Qxd2 {[%emt 0:00:07]} c6 {[%emt 0:00:04]} 9. Ne5 {[%emt 0:01:29]} b5 $1 {[%emt 0:02:49] [#]} 10. Nc3 $146 {[%emt 0:00:05][%cal Bb1c3,Bc3e4,Be4c5][%mdl 32]} ({Predecessor:} 10. a4 Ra6 11. Nc3 Bd7 12. Nxd7 Qxd7 13. axb5 cxb5 14. Qg5 O-O 15. Qxb5 Qxd4 16. O-O {½-½ (27) Postny,E (2615)-Anand,V (2773) St Petersburg 2018}) 10... Nd5 {[%emt 0:12:36]} 11. b3 {[%emt 0:00:04]} cxb3 {[%emt 0:12:37]} 12. axb3 {[%emt 0:00:02]} Bb7 {[%emt 0:12:23]} 13. O-O {[%emt 0:16:24][%cal Bh1f1,Bf1c1,Bc1c5][%mdl 1056] White has compensation.} O-O {[%emt 0:06:16]} 14. Ne4 {[%emt 0:10:36]} Ra7 {[%emt 0:10:29]} 15. Nc5 {[%emt 0:01:00]} b4 {[%emt 0:00:45]} 16. Rfc1 {[%emt 0:11:39]} Ba6 {[%emt 0:04:56]} 17. Nxa6 {[%emt 0:11:43]} Rxa6 {[%emt 0:00:07]} 18. Rc5 {[%emt 0:00:04]} Nc3 {[%emt 0:08:57][%cal Od8d4]} 19. e3 {[%emt 0:11:53]} (19. Bxc6 $2 f6 20. Bb7 Ra7 $19) (19. Nxc6 Nxc6 20. Bxc6 Qxd4 $3 {[%mdl 512]} 21. Qxd4 Nxe2+ 22. Kf1 Nxd4 $17) 19... a4 {[%emt 0:02:42]} 20. bxa4 {[%emt 0:00:42]} (20. Bxc6 $2 f6 21. Bb7 fxe5 $19) (20. Nxc6 Nxc6 21. Bxc6 a3 $17) 20... Nxa4 {[%emt 0:00:29]} (20... Rxa4 $142 21. Rxa4 Nxa4) 21. Nxc6 $2 {[%emt 0:10:11] 0x0.000860fb7113dp-1022s more active pieces. The black rooks are badly placed.} (21. Rcc1 $1 $16) 21... Nxc6 $11 {[%emt 0:04:54]} 22. Rxc6 {[%emt 0:00:06]} Rxc6 {[%emt 0:00:03]} 23. Bxc6 {[%emt 0:00:08]} Nc3 {[%emt 0:00:02]} 24. Qb2 {[%emt 0:02:55]} Qd6 {[%emt 0:02:43]} (24... Qb6 $5 {[%cal Rb6c6]} 25. Bf3 g6 $15) 25. Bf3 {[%emt 0:02:20]} (25. Ra6 $5 {[%cal Rc6b7]}) 25... e5 {[%emt 0:02:43]} (25... g6 $11) 26. dxe5 $16 {[%emt 0:00:11]} Qxe5 {[%emt 0:00:03][%cal Oc3e2] Strongly threatening ...Ne2+!} 27. Kg2 {[%emt 0:00:57]} ({And not} 27. Qxb4 Ne2+ $1 28. Bxe2 Qxa1+ 29. Kg2 g6 $17) ({White should try} 27. Ra7 $16) 27... Rb8 {[%emt 0:01:25]} 28. Qb3 {[%emt 0:03:38]} h6 {[%emt 0:02:16]} 29. Ra6 {[%emt 0:01:07]} Ne4 {[%emt 0:02:17]} 30. Ra7 {[%emt 0:02:32]} Kh8 {[%emt 0:00:28]} 31. Qxf7 {[%emt 0:08:40]} Ng5 $1 {[%emt 0:07:13]} 32. Qf4 {[%emt 0:01:49]} Nxf3 {[%emt 0:02:09]} 33. Kxf3 $11 {[%emt 0:00:02][%mdl 4096] Endgame KQR-KQR} Qd5+ {[%emt 0:00:29]} 34. e4 {[%emt 0:00:35]} Qg8 {[%emt 0:00:05]} (34... Qd3+ $1 $11 35. Kg2 Re8) 35. Qe5 $14 {[%emt 0:02:03][%cal Oa7g7]} Rb6 {[%emt 0:03:10]} 36. Kg2 {[%emt 0:00:43]} b3 {[%emt 0:00:55]} 37. Qb2 $1 {[%emt 0:00:41]} Qf8 {[%emt 0:00:06]} 38. Rd7 {[%emt 0:01:12]} (38. e5 $16) 38... Qf6 $11 {[%emt 0:01:15]} 39. Rd2 {[%emt 0:01:31]} Qe6 {[%emt 0:00:44]} (39... Qxb2 $11 40. Rxb2 g5) 40. e5 {[%emt 0:01:28]} (40. Qd4 $16) 40... Qc6+ {[%emt 0:01:04]} 41. f3 {[%emt 0:03:21]} Rb8 {[%emt 0:01:43]} 42. g4 {[%emt 0:11:07]} Qc4 {[%emt 0:02:00]} 43. Rd1 {[%emt 0:13:32]} Ra8 {[%emt 0:05:14] aiming for ...Ra2.} 44. Kg3 {[%emt 0:00:01]} Rf8 {[%emt 0:03:42] And now ...Qf4+ would win.} 45. Kg2 {[%emt 0:00:22]} Rc8 {[%emt 0:01:03]} 46. Kg3 {[%emt 0:02:43]} Rf8 {[%emt 0:05:59] Threatens to win with ...Qf4+.} 47. Kg2 {[%emt 0:00:05]} Rb8 {[%emt 0:00:04]} 48. Re1 {[%emt 0:01:29]} Kg8 {[%emt 0:01:14]} 49. Re4 {[%emt 0:01:10]} Qe6 {[%emt 0:01:01]} (49... Qd3 $5 {[%cal Rb8c8]}) 50. Kg3 {[%emt 0:00:04]} Rb5 {[%emt 0:02:02]} 51. h4 {[%emt 0:00:10]} h5 {[%emt 0:02:03]} 52. gxh5 {[%emt 0:00:09]} Rc5 {[%emt 0:02:34]} 53. Qd4 {[%emt 0:01:09]} Rd5 {[%emt 0:00:54] [#]} (53... Rc2 $2 54. Qe3 $18 (54. Qd6 Rc6 $16)) ({Black should play} 53... Rc8 $14) 54. Qc3 $2 {[%emt 0:00:34]} (54. Qc4 $1 $18 {[%cal Rc4b3]}) 54... Qb6 {[%emt 0:01:33] White must now prevent ...b2.} 55. Re1 {[%emt 0:00:37] Qc4 is the strong threat.} b2 {[%emt 0:01:03]} 56. Rb1 {[%emt 0:00:45]} Qb8 {[%emt 0:03:57]} (56... Rb5 $11) 57. Rxb2 $16 {[%emt 0:00:27]} ({Don't play} 57. Qxb2 Qxb2 58. Rxb2 Rxe5 $16) 57... Qxe5+ {[%emt 0:00:04]} 58. Qxe5 {[%emt 0:00:04]} Rxe5 {[%emt 0:00:02] KR-KR} 59. Kg4 {[%emt 0:00:06]} Kh7 {[%emt 0:00:54]} 60. Rb6 {[%emt 0:00:14]} Re1 {[%emt 0:00:53]} 61. f4 {[%emt 0:02:30]} (61. Ra6 $16) 61... Rg1+ $11 {[%emt 0:01:35] The position is equal.} 62. Kf5 {[%emt 0:00:02]} Ra1 {[%emt 0:00:08]} 63. Rb8 {[%emt 0:01:05]} Rh1 {[%emt 0:01:30]} 64. h6 {[%emt 0:00:05]} g6+ $1 {[%emt 0:00:05]} 65. Kg5 {[%emt 0:00:22] White threatens Rb7+ and mate.} Rg1+ {[%emt 0:00:04]} 66. Kf6 {[%emt 0:00:04]} Rg4 {[%emt 0:00:23]} 67. f5 {[%emt 0:00:43]} gxf5 {[%emt 0:00:05]} 68. Kxf5 {[%emt 0:00:09]} Rxh4 {[%emt 0:00:18]} 69. Kg5 {[%emt 0:00:03]} Rh5+ {[%emt 0:00:09]} 70. Kxh5 {[%emt 0:03:06] Weighted Error Value: White=0.17 (very precise) /Black=0.20 (precise)} 1/2-1/2

[Event "Prague Festival Open 2022"]
[Site "Prague"]
[Date "2022.06.16"]
[Round "8.5"]
[White "Seemann, Jakub"]
[Black "Stefansson, Hannes"]
[Result "0-1"]
[ECO "E46"]
[WhiteElo "2363"]
[BlackElo "2534"]
[Annotator "TA"]
[PlyCount "106"]
[EventDate "2022.06.10"]
[EventType "swiss"]
[EventCountry "CZE"]
[SourceTitle "playchess.com"]
[Source "ChessBase"]
[SourceQuality "1"]
[TimeControl "40/5400+30:1800+30"]

{[%evp 10,106,0,-11,2,-53,0,0,0,0,8,0,25,6,25,15,13,23,14,4,8,-28,-16,-31,-16,-27,-21,-31,-15,-14,-12,-13,-8,-55,-52,-47,-58,-61,-33,-29,-33,-9,-14,-33,0,0,0,0,0,-16,-14,-14,0,0,0,-141,-37,-33,-30,-25,-24,-24,-17,-51,-17,-24,-24,-300,-166,-290,-282,-29965,-29966,-29969,-29968,-29972,-29973,-29971,-29973,-29972,-29973,-29977,-29978,-29978,-29979,-29980,-29978,-29978,-29979,-29979,-29980,-29980,-29981,-29981,-29982,-29982,-29983,-29983,-29984]} 1. d4 {[%emt 0:00:03]} Nf6 {[%emt 0:00:12]} 2. c4 {[%emt 0:00:05]} e6 {[%emt 0:00:16]} 3. Nc3 {[%emt 0:00:04]} Bb4 {[%emt 0:00:12]} 4. e3 {[%emt 0:00:05]} O-O {[%emt 0:00:28]} 5. Bd2 {[%emt 0:00:07]} b6 {[%emt 0:01:12]} 6. Bd3 {[%emt 0:00:10]} Bb7 {[%emt 0:01:14] [#] E46: Nimzo-Indian: Rubinstein: 4 e3 0-0 5 Ne2 without early Bd3.} 7. Nh3 $146 {[%emt 0:00:05]} ({White should play} 7. Nf3 $11) ({Predecessor:} 7. Nf3 d6 8. Qc2 c5 9. a3 Bxc3 10. Bxc3 Nbd7 11. O-O Rc8 12. Rfd1 Qe7 13. Rac1 Rfd8 14. b4 cxd4 15. Nxd4 Ne5 16. Nb5 Nxd3 17. Qxd3 Ne4 18. Bb2 Qh4 19. Qe2 {0-1 (63) Akobian,V (2600)-Martinez Alcantara,J (2598) Saint Louis 2022}) 7... d5 {[%emt 0:09:07]} ({Black should try} 7... Bxg2 $15 8. Rg1 Bxh3) 8. cxd5 $11 {[%emt 0:00:15]} exd5 {[%emt 0:00:10] The position is equal.} 9. Nf4 {[%emt 0:00:05]} Bd6 {[%emt 0:09:50]} 10. Qf3 {[%emt 0:03:43][%cal Rc3d5]} Bxf4 {[%emt 0:01:08]} 11. Qxf4 {[%emt 0:01:19]} Re8 {[%emt 0:01:22]} 12. O-O {[%emt 0:03:57]} (12. Nb5 {seems wilder.} Na6 13. O-O Nh5 14. Qf3) 12... Ba6 {[%emt 0:01:28]} 13. Bxa6 {[%emt 0:00:35]} Nxa6 {[%emt 0:00:05][%cal Bb8a6,Ba6b4,Bb4d3][%mdl 32]} 14. Rac1 {[%emt 0:02:22]} Qd7 {[%emt 0:02:07]} 15. f3 {[%emt 0:00:47]} Nb4 {[%emt 0:02:37]} 16. Qg3 {[%emt 0:02:24]} Nd3 {[%emt 0:01:04]} 17. Rc2 {[%emt 0:00:23]} c5 {[%emt 0:04:10]} 18. dxc5 {[%emt 0:00:38]} bxc5 {[%emt 0:01:10]} 19. Ne2 {[%emt 0:02:48]} Rac8 {[%emt 0:05:12]} 20. Bc3 {[%emt 0:12:39] [#] Inhibits d4. aiming for Bxf6.} Qe6 {[%emt 0:02:25]} 21. Kh1 {[%emt 0:01:31]} (21. Bxf6 $11 Qxf6 22. Nf4) 21... Qf5 {[%emt 0:12:11]} 22. Bxf6 {[%emt 0:23:17]} Qxf6 {[%emt 0:00:44]} 23. Nf4 {[%emt 0:00:35]} Qf5 {[%emt 0:01:14] Black is more active.} 24. Qg4 {[%emt 0:01:07]} Qxg4 {[%emt 0:00:13]} 25. fxg4 {[%emt 0:00:04]} Nxf4 {[%emt 0:01:16]} 26. exf4 {[%emt 0:00:02][%mdl 4096] Endgame KRR-KRR} Re4 {[%emt 0:01:22]} 27. g3 {[%emt 0:02:26]} Kf8 {[%emt 0:04:36]} 28. Rd1 {[%emt 0:01:57]} d4 {[%emt 0:00:08]} 29. Rc4 {[%emt 0:00:10]} a5 {[%emt 0:03:43] next ...Re2 is good for Black.} 30. a3 $1 {[%emt 0:02:50]} Ke7 {[%emt 0:01:41]} 31. b4 $1 {[%emt 0:02:43]} Kd6 {[%emt 0:00:23] Threatens to win with ...Kd5.} 32. Rdc1 {[%emt 0:00:27]} (32. bxc5+ $11 {was the only way to keep the balance.} Kd5 33. Ra4) 32... Re2 {[%emt 0:04:21]} (32... axb4 33. axb4 Re2 34. Rxc5 Rxc5 35. bxc5+ Kc6 36. Kg1 $15) ({Better is} 32... Re3 $17 {Strongly threatening ...d3.} 33. Kg2 Rxa3 34. bxc5+ Kd5) 33. Rxd4+ $1 $15 {[%emt 0:17:19]} cxd4 {[%emt 0:02:05][%cal Rc8c1]} 34. Rxc8 {[%emt 0:00:06]} axb4 {[%emt 0:00:54]} 35. axb4 {[%emt 0:00:03] KR-KR} Kd5 {[%emt 0:00:31] And now ...d3 would win.} 36. Kg1 $1 {[%emt 0:00:13]} d3 {[%emt 0:11:51]} 37. Kf1 $1 {[%emt 0:00:26]} Kd4 {[%emt 0:01:35]} 38. Rc7 {[%emt 0:06:59][%mdl 8192] This costs White the game.} (38. b5 $11) 38... Re8 {[%emt 0:03:39]} ({Stronger than} 38... Rxh2 39. Ke1 $11) (38... Re4 $142 {White must now prevent ...d2.} 39. Rd7+ (39. Rxf7 $2 d2 $19) 39... Kc3 40. Rc7+ (40. b5 $2 d2 $19) 40... Kxb4 41. Rb7+ Kc3 42. Rc7+ Rc4 43. Rxf7 d2) 39. Rxf7 {[%emt 0:02:23] [#]} (39. Rd7+ $142 Kc3 40. Rc7+ Kxb4 41. Rd7) 39... d2 $1 $19 {[%emt 0:00:13]} 40. Rd7+ $2 {[%emt 0:00:53]} (40. Kf2 $19 Re1 41. Rxg7 (41. Rd7+ $2 Kc3 $19)) 40... Kc3 {[%emt 0:00:05] Black mates.} 41. Kf2 {[%emt 0:31:09]} Re1 {[%emt 0:30:21]} (41... Kc2 42. Rc7+ Kb1 43. Rd7 $17) 42. Kf3 {[%emt 0:06:48]} d1=Q+ {[%emt 0:00:20]} 43. Rxd1 {[%emt 0:00:04]} Rxd1 {[%emt 0:00:09] KR-KP} 44. Ke4 {[%emt 0:00:20]} Kxb4 {[%emt 0:03:54]} 45. Ke5 {[%emt 0:03:38]} Re1+ {[%emt 0:02:44]} 46. Kd6 {[%emt 0:00:00]} Re2 {[%emt 0:00:00]} 47. g5 {[%emt 0:00:00]} g6 {[%emt 0:00:00]} 48. h4 {[%emt 0:00:00]} Rg2 {[%emt 0:00:00]} 49. f5 {[%emt 0:00:00]} gxf5 {[%emt 0:00:00]} 50. Ke5 {[%emt 0:00:00]} Rxg3 {[%emt 0:00:00]} 51. Kxf5 {[%emt 0:00:00]} Rh3 {[%emt 0:00:00]} 52. Kg4 {[%emt 0:00:00]} Rh1 {[%emt 0:00:00]} 53. h5 {[%emt 0:00:00]} Kc5 {[%emt 0:00:00] Weighted Error Value: White=0.27 (precise) /Black=0.14 (very precise)} 0-1